bitfinex-derivatives/quotes_ETHF0:USTF0_20250329
["timestamp","ask_amount","ask_price","bid_price","bid_amount"]
[1743269076658,0.00831601,1802.7,1802.4,15.15271]
[1743269076859,0.00831601,1802.7,1802.5,1.1101]
[1743269077168,0.00831601,1802.7,1802.6,4.31784]
[1743269077556,0.00831601,1802.7,1802.4,3.2078]
[1743269077863,0.00831601,1802.7,1802.4,4.31791]
[1743269078369,0.00831601,1802.7,1802.5,1.1101]
[1743269078567,0.00831601,1802.7,1802.6,4.31784]
[1743269078966,0.00831601,1802.7,1802.6,9.36084]
[1743269079570,0.00831601,1802.7,1802.6,8.2508]
[1743269079866,0.00831601,1802.7,1802.6,5.043]
[1743269080462,2.7751,1802.6,1802.2,15.2664]
[1743269080668,1.11022,1802.3,1802.2,5.043]
[1743269082068,1.11028,1802.2,1802.1,11.0082]
[1743269082570,1.11028,1802.2,1801.7,54.4438]
[1743269082571,1.11053,1801.8,1801.7,0.01]
[1743269082770,5.55174,1802.1,1801.2,3.33243]
[1743269082771,1.11078,1801.4,1801.3,3.2078]
[1743269083073,1.11084,1801.3,1801.2,6.885]
[1743269083262,5.9646,1802.0,1801.2,6.885]
[1743269083468,3.2078,1801.9,1801.2,6.885]
[1743269083674,3.2078,1801.9,1801.3,4.3186]
[1743269083973,0.00831601,1801.7,1801.4,0.00831601]
[1743269084175,0.00831601,1801.7,1801.4,11.08561601]
[1743269084869,3.21611601,1801.7,1801.4,11.08561601]
[1743269085074,10.9915,1801.6,1801.4,11.08561601]
[1743269085377,14.1993,1801.6,1801.4,11.08561601]
[1743269086067,10.9915,1801.6,1801.4,11.08561601]
[1743269086268,0.00831601,1801.7,1801.5,1.11069]
[1743269086466,0.00831601,1801.7,1801.6,11.9032]
[1743269087276,10.99651601,1801.7,1801.6,11.9032]
[1743269087968,0.00831601,1801.7,1801.6,11.9032]
[1743269088872,0.00831601,1801.7,1801.6,13.01385]
[1743269089368,0.00831601,1801.7,1801.6,11.9032]
[1743269089671,7.1199,1802.3,1801.6,11.9032]
[1743269089672,1.1103,1802.2,1801.8,2.77619]
[1743269089878,1.11036,1802.1,1802.0,1.11038]
[1743269090070,1.11033,1802.2,1802.0,12.66318]
[1743269090266,1.11034,1802.1,1802.0,11.5528]
[1743269090467,14.7561,1802.3,1801.5,3.2078]
[1743269090776,1.11071,1801.5,1801.3,1.11082]
[1743269091074,1.11071,1801.5,1801.4,1.11909601]
[1743269091374,2.77643,1801.8,1801.4,4.32683601]
[1743269091577,14.7561,1801.9,1801.5,12.66348]
[1743269091871,14.7561,1801.9,1801.5,17.70648]
[1743269092076,14.7561,1801.9,1801.6,4.31841]
[1743269092077,11.5483,1801.9,1801.6,4.31841]
[1743269092269,11.5483,1801.9,1801.7,11.5712]
[1743269092572,0.00831601,1802.1,1801.8,4.31833]
[1743269092779,11.60851601,1802.1,1801.9,11.5712]
[1743269093078,11.60851601,1802.1,1801.9,12.68167]
[1743269093271,11.60851601,1802.1,1801.9,17.72467]
[1743269093678,11.60851601,1802.1,1801.9,16.6142]
[1743269093876,11.60851601,1802.1,1801.9,17.72466]
[1743269094378,11.60851601,1802.1,1801.9,11.5712]
[1743269095072,11.60851601,1802.1,1801.9,12.68166]
[1743269095271,11.60851601,1802.1,1801.9,11.5712]
[1743269095470,0.00831601,1802.1,1801.9,11.5712]
[1743269095777,0.00831601,1802.1,1802.0,4.31821]
[1743269096578,0.00831601,1802.1,1802.0,15.70101]
[1743269096773,0.00831601,1802.1,1802.0,3.2078]
[1743269096967,0.00831601,1802.1,1801.6,19.6326]
[1743269097172,0.00831601,1802.1,1801.8,1.11051]
[1743269097376,0.00831601,1802.1,1801.9,11.3828]
[1743269097673,0.00831601,1802.1,1801.9,12.49327]
[1743269098178,0.00831601,1802.1,1802.0,1.11041]
[1743269098379,0.00831601,1802.1,1802.0,9.36021]
[1743269099277,3.2078,1802.5,1802.2,1.11023]
[1743269099474,14.7636,1802.7,1802.2,3.2078]
[1743269099679,14.7636,1802.7,1802.3,12.075]
[1743269100176,14.7636,1802.7,1802.3,13.18521]
[1743269100379,14.7636,1802.7,1802.3,12.075]
[1743269100580,14.77191601,1802.7,1802.3,13.19348601]
[1743269100878,14.77191601,1802.7,1802.3,12.08331601]
[1743269101483,14.77191601,1802.7,1802.3,0.00831601]
[1743269101680,14.77191601,1802.7,1801.2,0.5552]
[1743269101681,3.2078,1802.4,1801.3,5.041]
[1743269101882,3.2078,1802.1,1801.4,3.2078]
[1743269102072,3.2078,1801.9,1801.4,3.2078]
[1743269102276,11.9577,1801.8,1801.4,3.2078]
[1743269102473,1.11078,1801.4,1801.3,11.2712]
[1743269102676,1.11078,1801.4,1801.3,16.3112]
[1743269102886,0.00831601,1801.5,1801.3,16.3112]
[1743269103076,0.00831601,1801.5,1801.4,11.2712]
[1743269103381,8.2478,1802.2,1801.4,14.479]
[1743269103686,8.2478,1802.2,1801.7,1.11059]
[1743269103687,3.2078,1802.2,1801.7,1.11059]
[1743269103885,3.2078,1802.2,1801.7,1.11058]
[1743269103886,11.7871,1802.1,1801.7,1.11058]
[1743269104077,11.7871,1802.1,1801.8,11.9211]
[1743269104275,11.7871,1802.1,1801.8,13.03162]
[1743269104474,0.00831601,1802.1,1802.0,1.11041]
[1743269105082,0.00831601,1802.1,1802.0,6.15041]
[1743269105580,13.1666,1802.7,1802.1,1.11034]
[1743269105776,13.1666,1802.7,1802.2,11.9211]
[1743269105979,14.9949,1802.6,1802.2,11.9211]
[1743269106175,3.2078,1802.4,1801.7,61.752]
[1743269106382,3.2078,1802.0,1801.7,3.2078]
[1743269106585,1.11053,1801.8,1801.7,3.2078]
[1743269106778,1.11078,1801.4,1801.3,11.0615]
[1743269107383,1.11084,1801.3,1801.2,0.00831601]
[1743269107579,12.51414,1801.3,1801.2,0.00831601]
[1743269108486,14.18041,1801.3,1800.7,5.039]
[1743269108784,14.18041,1801.3,1800.9,1.11107]
[1743269108985,11.4033,1801.3,1801.0,11.0615]
[1743269109374,3.2078,1801.8,1801.1,5.039]
[1743269109581,7.1331,1801.9,1801.6,3.2078]
[1743269109780,11.4033,1801.9,1801.7,12.17205]
[1743269109975,11.4033,1801.9,1801.7,11.0615]
[1743269110176,11.4033,1801.9,1801.8,1.11053]
[1743269110579,0.00831601,1802.0,1801.8,3.2078]
[1743269110787,0.00831601,1802.0,1801.9,11.6699]
[1743269111383,0.00831601,1802.0,1801.9,12.78037]
[1743269111689,0.00831601,1802.0,1801.9,15.98817]
[1743269112889,14.37539679,1802.6,1802.2,1.11026]
[1743269113089,11.0588,1802.5,1802.3,16.3815]
[1743269113886,11.0588,1802.5,1802.4,11.3435]
[1743269114687,11.0588,1802.5,1802.4,12.45366]
[1743269114893,14.2666,1802.5,1802.2,0.00831601]
[1743269115187,1.11022,1802.3,1802.2,0.00831601]
[1743269117283,14.2666,1802.5,1802.2,0.00831601]
[1743269119199,12.47518914,1802.4,1802.2,0.00831601]
[1743269119390,11.9357,1802.3,1802.2,0.00831601]
[1743269119795,11.9357,1802.3,1802.2,0.01831601]
[1743269119995,12.47518914,1802.4,1802.2,0.01831601]
[1743269120297,12.47518914,1802.4,1802.3,1.11022]
[1743269120591,12.47518914,1802.4,1802.3,12.05052]
[1743269120792,12.47518914,1802.4,1802.3,19.58552]
[1743269121201,12.47518914,1802.5,1802.4,1.11016]
[1743269121391,12.47518914,1802.5,1802.4,12.05046]
[1743269121592,12.47518914,1802.5,1802.4,15.25826]
[1743269122493,12.47518914,1802.5,1802.4,10.9403]
[1743269122692,23.58188914,1802.5,1802.3,5.035]
[1743269123288,11.1067,1802.5,1802.3,5.035]
[1743269123696,11.1067,1802.5,1802.4,1.11016]
[1743269123892,0.00831601,1802.6,1802.4,11.2032]
[1743269124092,0.00831601,1802.6,1802.5,1.1101]
[1743269124298,0.00831601,1802.6,1802.4,11.2032]
[1743269124492,11.11501601,1802.6,1802.4,11.2032]
[1743269125102,0.00831601,1802.6,1802.5,1.1101]
[1743269125298,0.00831601,1802.6,1802.5,13.1397]
[1743269125701,0.00831601,1802.6,1802.5,15.6397]
[1743269126097,0.00831601,1802.6,1802.5,13.1397]
[1743269126895,0.00831601,1802.6,1802.5,15.6397]
[1743269127102,0.00831601,1802.6,1802.5,13.1397]
[1743269128298,0.00831601,1802.6,1802.5,12.0296]
[1743269128497,2.77535,1802.5,1802.2,6.16056601]
[1743269128697,13.08466,1802.4,1802.3,11.4956]
[1743269128895,1.11022,1802.3,1802.2,16.54591601]
[1743269129399,1.11022,1802.3,1802.2,17.65619601]
[1743269129600,0.00831601,1802.6,1802.2,16.54591601]
[1743269129804,13.09291601,1802.6,1802.5,1.1101]
[1743269130493,0.00831601,1802.6,1802.5,1.1101]
[1743269130696,0.00831601,1802.6,1802.5,3.2078]
[1743269130997,0.00831601,1802.6,1802.5,4.3179]
[1743269132602,0.00831601,1802.6,1802.5,6.8179]
[1743269133002,12.47518914,1802.9,1802.8,1.10991]
[1743269133194,3.40458914,1802.9,1802.8,9.34871]
[1743269133401,3.40458914,1802.9,1802.8,11.84871]
[1743269133607,14.37539679,1803.1,1803.0,1.10979]
[1743269133902,13.21962679,1803.1,1803.0,55.58959]
[1743269134108,13.21962679,1803.1,1803.0,65.27674353]
[1743269134300,17.59466363,1803.3,1803.2,1.10967]
[1743269134603,17.59466363,1803.3,1803.2,9.34747]
[1743269134903,17.59466363,1803.3,1803.2,19.04072647]
[1743269135802,3.2078,1803.7,1803.2,8.2378]
[1743269135999,7.3961,1803.7,1803.2,8.2378]
[1743269136194,2.77359,1803.6,1803.3,0.00831601]
[1743269136399,1.10951,1803.5,1803.4,1.10952]
[1743269136599,1.10946,1803.6,1803.5,1.10946]
[1743269136806,1.10943,1803.6,1803.5,1.10945]
[1743269136998,8.50551,1803.7,1803.4,3.2078]
[1743269137196,1.10942,1803.6,1803.5,1.10943]
[1743269137401,8.50549,1803.7,1803.6,1.10942]
[1743269137605,5.4717,1803.9,1803.6,8.2358]
[1743269137902,1.10934,1803.8,1803.6,8.2358]
[1743269138203,5.4717,1803.9,1803.6,8.2358]
[1743269138402,6.58096,1803.9,1803.8,1.1093]
[1743269138607,5.4717,1803.9,1803.8,1.1093]
[1743269138807,5.4717,1803.9,1803.7,12.85982]
[1743269138808,1.1093,1803.8,1803.7,12.85982]
[1743269139008,6.58096,1803.9,1803.8,1.1093]
[1743269139604,8.25861,1804.0,1803.9,1.10924]
[1743269139903,8.2586,1804.0,1803.9,1.10924]
[1743269140309,1.10926,1803.9,1803.8,1.10925]
[1743269141212,7.1494,1804.0,1803.9,1.10924]
[1743269141402,8.25857,1804.0,1803.9,1.10924]
[1743269143309,1.10917,1804.1,1804.0,1.10917]
[1743269143509,5.7349,1804.2,1803.9,11.4403]
[1743269143708,5.7349,1804.2,1804.1,1.10911]
[1743269143898,1.10901,1804.3,1804.2,1.10905]
[1743269144102,1.10906,1804.2,1804.1,1.10911]
[1743269144302,15.37952,1804.5,1804.0,19.6731]
[1743269144303,1.10896,1804.4,1804.3,1.10896]
[1743269144503,13.71618,1804.5,1804.4,1.10893]
[1743269144803,5.97953,1804.8,1804.4,1.10893]
[1743269144804,3.2078,1804.8,1804.4,5.024]
[1743269145011,1.10885,1804.6,1804.5,1.10887]
[1743269145808,2.77156,1804.9,1804.5,1.10881]
[1743269146003,1.10881,1804.6,1804.5,1.10881]
[1743269146608,1.10879,1804.7,1804.6,1.10879]
[1743269146800,1.10882,1804.6,1804.5,1.10882]
[1743269147000,1.10879,1804.7,1804.6,1.10879]
[1743269147200,15.72402,1805.0,1804.4,22.29562]
[1743269147409,1.10874,1804.8,1804.7,1.10873]
[1743269147612,2.77156,1804.9,1804.4,19.5233]
[1743269147904,1.10884,1804.6,1804.5,1.10884]
[1743269148405,15.72402,1805.0,1804.4,22.2955]
[1743269148612,1.1087,1804.8,1804.7,1.10869]
[1743269148803,1.10867,1804.9,1804.8,1.10867]
[1743269149004,14.0612,1805.0,1804.9,1.10862]
[1743269149205,1.10864,1804.9,1804.8,1.10863]
[1743269149405,12.9526,1805.0,1804.7,1.10872]
[1743269149599,1.10872,1804.8,1804.7,1.10872]
[1743269150007,1.10862,1804.9,1804.8,1.10868]
[1743269150405,12.9526,1805.0,1804.6,16.8618]
[1743269150608,14.0612,1805.0,1804.9,1.10862]
[1743269150815,12.9526,1805.0,1804.9,1.10862]
[1743269151111,14.06116,1805.0,1804.9,1.10862]
[1743269151513,1.10862,1804.9,1804.8,5.02]
[1743269151908,12.97872,1804.9,1804.8,5.02]
[1743269152110,11.8701,1804.9,1804.8,6.12868]
[1743269152312,12.97872,1804.9,1804.8,5.02]
[1743269152814,12.97872,1804.9,1804.8,6.12868]
[1743269155913,11.8701,1804.9,1804.8,9.33648]
[1743269156615,11.8701,1804.9,1804.5,1.10884]
[1743269156816,15.0779,1804.9,1804.7,1.10871]
[1743269157021,11.8701,1804.9,1804.8,1.10868]
[1743269157416,11.8701,1804.9,1804.8,4.31648]
[1743269159623,1.10844,1805.2,1805.1,1.1085]
[1743269159824,5.7117,1805.3,1805.2,1.10844]
[1743269160020,6.82008,1805.3,1805.2,1.10844]
[1743269160221,1.10844,1805.2,1805.1,9.33128]
[1743269160529,1.10844,1805.2,1805.1,5.015]
[1743269161022,12.50234,1805.2,1805.1,6.1235]
[1743269161824,11.3939,1805.2,1805.1,9.3313]
[1743269162612,11.3939,1805.2,1805.1,6.1235]
[1743269162818,12.50234,1805.2,1805.1,9.3313]
[1743269163330,11.3939,1805.2,1805.1,9.3313]
[1743269163625,12.50234,1805.2,1805.1,9.3313]
[1743269163828,11.3939,1805.2,1805.1,9.3313]
[1743269164023,12.50234,1805.2,1805.1,9.3313]
[1743269164528,11.3939,1805.2,1805.1,9.3313]
[1743269164820,1.10862,1805.0,1804.9,1.10857]
[1743269165018,1.10862,1805.0,1804.7,5.97954]
[1743269165019,1.10862,1804.9,1804.8,6.12063]
[1743269165818,7.3172,1804.9,1804.8,6.12063]
[1743269166115,12.66946,1805.0,1804.9,1.10862]
[1743269166318,12.66946,1805.0,1804.9,3.2078]
[1743269166524,12.66946,1805.0,1804.9,4.31642]
[1743269166723,11.5609,1805.0,1804.8,5.012]
[1743269166927,11.5609,1805.0,1804.9,1.10862]
[1743269167124,11.5609,1805.0,1804.9,12.84912]
[1743269167618,3.2078,1805.1,1805.0,1.10856]
[1743269167923,1.1085,1805.1,1805.0,4.31636]
[1743269168123,19.86399,1805.2,1805.1,1.1085]
[1743269168321,18.7555,1805.2,1805.1,1.1085]
[1743269168525,19.86394,1805.2,1805.1,1.1085]
[1743269168726,18.7555,1805.2,1805.1,1.1085]
[1743269169024,18.7555,1805.2,1805.1,12.6267]
[1743269169226,11.4383,1805.2,1805.1,12.6267]
[1743269169921,12.54674,1805.2,1805.1,12.6267]
[1743269170125,12.54674,1805.2,1805.1,1.1085]
[1743269171824,11.4383,1805.2,1805.1,1.1085]
[1743269172129,12.54674,1805.2,1805.1,1.1085]
[1743269172922,11.4383,1805.2,1804.8,14.966]
[1743269173123,1.10899,1804.4,1804.3,1.10895]
[1743269173523,25.9219,1804.5,1804.4,1.10893]
[1743269173730,12.9763,1804.5,1804.4,1.10893]
[1743269173927,12.9763,1804.5,1804.4,4.31673]
[1743269174127,14.08517,1804.5,1804.4,1.10893]
[1743269175131,14.08517,1804.5,1804.3,1.10893]
[1743269175132,1.10893,1804.4,1804.3,1.10893]
[1743269175522,12.9763,1804.5,1804.4,1.10893]
[1743269175723,5.97926,1805.0,1804.4,4.31673]
[1743269176022,1.10877,1804.7,1804.6,4.31654]
[1743269176228,1.10877,1804.7,1804.6,5.008]
[1743269177224,1.10877,1804.7,1804.6,6.11681]
[1743269177726,7.0069,1804.9,1804.6,5.008]
[1743269177931,1.10872,1804.8,1804.7,1.10872]
[1743269178740,7.0069,1804.9,1804.8,1.10868]
[1743269178934,8.11552,1804.9,1804.8,1.10868]
[1743269179231,7.0069,1804.9,1804.7,11.7972]
[1743269179427,8.11558,1804.9,1804.8,1.10868]
[1743269179628,7.0069,1804.9,1804.8,1.10868]
[1743269180132,8.11552,1804.9,1804.8,1.10868]
[1743269180332,7.0069,1804.9,1804.8,1.10868]
[1743269180534,8.11552,1804.9,1804.8,1.10868]
[1743269181132,7.0069,1804.9,1804.8,1.10868]
[1743269181934,1.10854,1805.1,1805.0,1.10856]
[1743269182137,1.10836,1805.4,1805.3,1.10834]
[1743269183138,1.10836,1805.4,1805.2,3.21611601]
[1743269183139,1.1083,1805.5,1805.4,1.10829]
[1743269183327,13.52843,1805.6,1805.5,1.10825]
[1743269183530,12.4202,1805.6,1805.5,1.10825]
[1743269183830,5.53552,1807.4,1805.5,21.85059426]
[1743269184037,1.10761,1806.6,1806.4,1.10769]
[1743269184233,8.6602,1806.8,1806.5,5.004]
[1743269184427,6.8850072,1807.2,1807.1,1.10727]
[1743269184636,6.8850072,1807.2,1807.1,9.31907]
[1743269184833,6.8850072,1807.2,1807.1,3.2078]
[1743269185029,6.8850072,1807.2,1806.6,67.4697]
[1743269185030,6.8850072,1807.2,1806.8,3.2078]
[1743269185531,6.8850072,1807.2,1807.0,3.2078]
[1743269185938,6.8850072,1807.2,1807.1,1.10727]
[1743269186138,6.8850072,1807.2,1807.0,3.2078]
[1743269186336,6.8850072,1807.2,1807.0,4.31513]
[1743269186538,6.8850072,1807.2,1807.1,1.10727]
[1743269186937,13.62029,1807.6,1807.2,1.1072]
[1743269187136,12.5133,1807.6,1807.2,9.31697]
[1743269187335,12.5133,1807.6,1807.2,8.21811601]
[1743269187533,12.5133,1807.6,1807.4,1.10706]
[1743269187837,1.10682,1807.9,1807.4,3.2078]
[1743269188040,14.39624,1808.2,1807.8,4.31463]
[1743269188236,13.2896,1808.2,1808.0,3.2078]
[1743269189246,1.10648,1808.4,1808.0,3.2078]
[1743269189442,3.2078,1808.8,1808.1,3.2078]
[1743269189644,7.0556,1808.9,1808.4,1.10646]
[1743269189839,7.0556,1808.9,1808.3,3.2078]
[1743269189840,1.10648,1808.4,1808.3,3.2078]
[1743269190038,1.10643,1808.5,1808.2,6.10758]
[1743269190235,1.10636,1808.6,1808.3,4.3143]
[1743269190439,9.82112,1808.9,1808.3,3.2078]
[1743269190641,3.2078,1808.8,1808.3,3.2078]
[1743269190839,7.0556,1808.9,1808.8,1.10623]
[1743269191042,7.0556,1808.9,1808.7,9.31207]
[1743269191249,8.16177,1808.9,1808.8,4.998]
[1743269191448,1.10634,1808.7,1808.4,6.10447]
[1743269191646,1.10639,1808.6,1808.4,4.998]
[1743269191951,1.10641,1808.5,1808.4,4.998]
[1743269192144,12.77831,1808.5,1808.2,1.10657]
[1743269192339,12.77831,1808.5,1808.1,8.2058]
[1743269192340,11.6719,1808.5,1808.1,8.2058]
[1743269192541,11.6719,1808.5,1808.4,1.10648]
[1743269192950,11.6719,1808.5,1808.3,3.2078]
[1743269193152,1.10626,1808.8,1808.4,1.10648]
[1743269193451,11.6719,1808.7,1808.6,1.10635]
[1743269193638,11.6719,1808.7,1808.5,9.31018]
[1743269193849,11.6719,1808.7,1808.6,1.10635]
[1743269194043,11.6719,1808.7,1808.5,8.2038]
[1743269194249,1.10635,1808.6,1808.5,8.2038]
[1743269194454,12.77824,1808.7,1808.5,8.2038]
[1743269194751,11.6719,1808.7,1808.6,1.10635]
[1743269195551,11.6719,1808.7,1808.6,12.32855]
[1743269196254,5.7688,1809.2,1808.7,1.10626]
[1743269196451,1.10612,1809.0,1808.7,3.2078]
[1743269196657,11.7606,1808.9,1808.8,1.10617]
[1743269197858,11.7606,1808.9,1808.8,12.32837]
[1743269198052,1.10601,1809.2,1808.8,11.2222]
[1743269198249,11.5399,1809.2,1809.1,1.10605]
[1743269199255,11.5399,1809.2,1809.0,3.21609255]
[1743269199256,12.64592,1809.2,1809.0,3.21609255]
[1743269199458,12.64592,1809.2,1809.1,1.10605]
[1743269199953,11.5399,1809.2,1809.1,1.10605]
[1743269201962,12.64589,1809.2,1809.1,1.10605]
[1743269202162,1.10605,1809.1,1809.0,3.21609255]
[1743269202354,11.5399,1809.2,1809.0,3.21609255]
[1743269202556,11.5399,1809.2,1809.1,1.10605]
[1743269203153,11.5399,1809.2,1809.1,12.41305]
[1743269204053,1.10576,1809.6,1809.2,2.76488]
[1743269204358,2.76389,1810.0,1809.5,3.2078]
[1743269204359,7.02964,1810.0,1809.5,3.2078]
[1743269204556,3.2078,1811.5,1810.1,3.2078]
[1743269204857,3.2078,1811.5,1810.7,3.2078]
[1743269204858,1.10501,1810.8,1810.7,3.2078]
[1743269205053,1.10513,1810.6,1810.5,3.2078]
[1743269206054,3.2078,1812.1,1810.5,62.63917831]
[1743269206360,11.7515,1811.6,1811.2,3.2078]
[1743269206550,1.10489,1811.0,1810.9,3.2078]
[1743269206955,24.8709,1811.2,1810.7,8.1948]
[1743269207153,2.76136,1811.6,1811.1,3.2078]
[1743269207353,1.10479,1811.2,1811.1,3.2078]
[1743269207749,5.9689,1811.8,1811.2,1.10474]
[1743269207953,1.10456,1811.6,1811.5,3.2078]
[1743269208457,2.76085,1811.9,1811.3,3.2078]
[1743269208655,1.10454,1811.6,1811.5,3.2078]
[1743269208963,1.10442,1811.8,1811.6,1.10452]
[1743269209158,1.1044,1811.8,1811.7,3.2078]
[1743269210760,7.3234,1812.0,1811.7,4.31225]
[1743269210955,3.2078,1812.6,1811.8,2.76101]
[1743269211156,3.2078,1812.6,1812.1,3.2078]
[1743269211362,1.10428,1812.0,1811.9,4.982]
[1743269211563,2.76027,1812.3,1811.8,3.2078]
[1743269211762,1.10409,1812.3,1812.2,2.55e-06]
[1743269212261,3.60409,1812.3,1812.2,2.55e-06]
[1743269212964,1.10409,1812.3,1812.2,2.55e-06]
[1743269213462,3.60409,1812.3,1812.2,2.55e-06]
[1743269214164,2.5,1812.3,1812.2,2.55e-06]
[1743269214359,1.10409,1812.3,1812.2,3.20780255]
[1743269214860,1.10409,1812.3,1812.2,2.55e-06]
[1743269215065,6.81189,1812.3,1812.2,2.55e-06]
[1743269215470,11.79189,1812.3,1812.2,2.55e-06]
[1743269216267,3.60409,1812.3,1812.2,2.55e-06]
[1743269217061,6.81189,1812.3,1812.2,2.55e-06]
[1743269217263,6.81189,1812.3,1811.2,3.2078]
[1743269217264,5.7078,1812.3,1811.2,3.2078]
[1743269217466,1.10467,1811.4,1811.3,3.2078]
[1743269217768,2.76101,1811.8,1811.3,3.2078]
[1743269217961,2.76101,1811.8,1811.2,1.10473]
[1743269217962,1.10464,1811.4,1811.2,1.10473]
[1743269218163,2.76101,1811.8,1811.3,3.2078]
[1743269218361,1.10452,1811.6,1811.5,3.2078]
[1743269220070,0.00821439,1811.7,1811.6,1.10452]
[1743269220365,0.00821439,1811.7,1811.6,18.12392]
[1743269220566,1.10437,1811.9,1811.7,1.1044]
[1743269220764,1.10437,1811.9,1811.8,15.2492]
[1743269220967,5.51897,1812.9,1811.8,15.2492]
[1743269220968,2.75941,1812.9,1811.8,15.8012]
[1743269221167,1.10388,1812.7,1812.6,3.2078]
[1743269221666,3.2078,1813.7,1812.6,3.2078]
[1743269221865,3.2078,1813.7,1812.5,0.00829255]
[1743269221866,1.10391,1812.6,1812.5,0.00829255]
[1743269222068,3.2078,1813.5,1812.5,0.00829255]
[1743269222280,11.1549,1813.4,1813.2,3.2078]
[1743269222564,1.10373,1812.9,1812.8,3.2078]
[1743269222960,1.10391,1812.6,1812.5,0.00829255]
[1743269223167,5.96652,1813.3,1812.5,0.00829255]
[1743269223363,1.10391,1812.6,1812.5,0.00829255]
[1743269223675,1.10391,1812.6,1812.5,3.21609255]
[1743269223863,5.4448,1812.8,1812.5,3.21609255]
[1743269224069,1.10391,1812.6,1812.5,3.21609255]
[1743269224462,1.10391,1812.6,1812.5,0.00829255]
[1743269226272,2.75903,1813.1,1812.5,8.19209255]
[1743269226470,11.47,1812.6,1812.5,9.29606255]
[1743269226667,5.5345,1813.0,1812.5,8.19209255]
[1743269226867,11.47,1812.9,1812.6,3.2078]
[1743269227268,12.57373,1812.9,1812.8,3.2078]
[1743269227465,6.8604,1813.3,1812.8,3.2078]
[1743269227666,1.10373,1812.9,1812.8,3.2078]
[1743269227874,14.22889,1813.2,1812.8,8.1838]
[1743269228171,11.47,1813.2,1812.8,8.1838]
[1743269228366,1.10373,1812.9,1812.8,8.1838]
[1743269228768,2.75904,1813.1,1812.6,8.1828]
[1743269228963,1.10385,1812.7,1812.6,8.1828]
[1743269229271,1.10385,1812.7,1812.6,19.3953]
[1743269229467,1.10385,1812.7,1812.6,8.1828]
[1743269229665,11.1369,1812.8,1812.6,9.28671]
[1743269229871,11.1369,1812.8,1812.7,1.10385]
[1743269230066,1.10378,1812.9,1812.7,1.10385]
[1743269230271,9.61927,1813.3,1812.9,1.10373]
[1743269230272,1.10366,1813.1,1812.9,1.10373]
[1743269230472,1.10373,1812.9,1812.8,4.975]
[1743269230686,1.10373,1812.9,1812.8,8.1828]
[1743269230971,12.24059,1813.0,1812.9,1.10373]
[1743269231180,1.10373,1812.9,1812.8,8.1828]
[1743269231575,1.10373,1812.9,1812.5,0.00829255]
[1743269231576,1.10391,1812.6,1812.5,0.00829255]
[1743269232176,1.10391,1812.6,1812.0,4.975]
[1743269232177,2.5,1812.6,1812.0,3.2078]
[1743269232387,2.76024,1812.3,1811.7,3.2078]
[1743269232576,1.10434,1812.0,1811.9,3.2078]
[1743269232776,1.10428,1812.0,1811.9,3.2078]
[1743269233076,2.76024,1812.3,1811.9,4.31212]
[1743269233272,1.10426,1812.1,1811.6,14.06219]
[1743269233471,0.00829254,1812.3,1812.0,3.2078]
[1743269233676,0.00829254,1812.3,1812.2,4.31196]
[1743269234072,0.00829254,1812.3,1812.2,15.61286]
[1743269234272,1.11238254,1812.3,1812.2,14.5087]
[1743269234476,0.00829254,1812.3,1812.2,3.2078]
[1743269234780,0.00829254,1812.3,1812.2,16.32706]
[1743269235081,1.11238254,1812.3,1812.2,3.2078]
[1743269235986,0.00829254,1812.3,1812.0,3.2078]
[1743269236282,1.10418,1812.2,1812.0,16.32713]
[1743269236475,1.10422,1812.1,1812.0,3.2078]
[1743269236682,12.93692,1812.1,1812.0,3.2078]
[1743269236885,11.8327,1812.1,1812.0,3.2078]
[1743269237181,12.93692,1812.1,1812.0,3.2078]
[1743269239680,1.10421,1812.2,1812.0,4.31203]
[1743269239985,1.10422,1812.1,1812.0,15.83303]
[1743269240180,1.10416,1812.2,1812.0,15.83305]
[1743269240487,11.44559254,1812.3,1812.2,1.10416]
[1743269240788,0.00829254,1812.3,1812.2,4.31196]
[1743269241682,11.3195,1812.7,1812.6,1.10391]
[1743269241887,12.42335,1812.7,1812.6,3.2078]
[1743269242584,1.10397,1812.5,1812.4,3.2078]
[1743269243078,12.42347,1812.5,1812.4,3.2078]
[1743269243281,2.75936,1812.9,1812.5,1.10396]
[1743269243482,1.10391,1812.6,1812.5,8.1828]
[1743269243783,1.10391,1812.6,1812.5,8.19109255]
[1743269243986,12.42337,1812.7,1812.5,8.19109255]
[1743269244181,12.42337,1812.7,1812.6,11.5878]
[1743269244385,12.42337,1812.7,1812.5,8.19109255]
[1743269244386,1.10391,1812.6,1812.5,3.21609255]
[1743269245580,11.3195,1812.7,1812.5,3.21609255]
[1743269245780,5.876,1813.0,1812.7,1.10381]
[1743269246078,12.93986,1812.9,1812.8,1.10379]
[1743269246277,11.8361,1812.9,1812.8,9.28559]
[1743269246482,8.7298,1813.4,1813.1,1.10356]
[1743269246483,5.9712,1813.4,1813.1,1.10356]
[1743269246683,5.9712,1813.4,1813.2,4.31135]
[1743269246684,11.0939,1813.3,1813.2,4.31135]
[1743269247079,12.19739,1813.3,1813.2,3.2078]
[1743269247680,11.0939,1813.3,1813.2,4.31135]
[1743269247876,8.26745,1813.7,1813.2,10.6818]
[1743269248082,11.0939,1813.6,1813.5,4.31116]
[1743269248290,5.51546,1814.0,1813.5,4.31116]
[1743269248291,1.1031,1814.0,1813.8,1.10314]
[1743269248483,1.10304,1814.1,1813.9,8.1818]
[1743269248790,12.19696,1814.0,1813.9,8.1818]
[1743269248979,12.19696,1814.0,1813.9,3.2078]
[1743269249185,5.96366,1815.2,1814.0,2.75766]